bitfinex/quotes_SOLUSD_20250414
["timestamp","ask_amount","ask_price","bid_price","bid_amount"]
[1744596141029,6.1593,130.52,130.48,19.26641756]
[1744596142047,25.42571756,130.52,130.47,19.26641756]
[1744596142263,19.26641756,130.51,130.45,20.78521756]
[1744596142828,6.1593,130.52,130.47,19.26641756]
[1744596143029,0.03,130.52,130.47,19.26641756]
[1744596143235,19.29641756,130.52,130.46,45.26641756]
[1744596143430,19.29641756,130.52,130.46,26.0]
[1744596143650,19.29641756,130.52,130.46,45.26641756]
[1744596143845,19.29641756,130.52,130.47,19.26641756]
[1744596144234,19.29641756,130.52,130.46,19.26641756]
[1744596145037,19.26641756,130.48,130.43,88.7332]
[1744596145238,19.26641756,130.48,130.43,101.86641756]
[1744596145427,25.39711756,130.49,130.43,107.99981756]
[1744596145632,25.39711756,130.49,130.43,25.39981756]
[1744596146350,6.1307,130.49,130.44,19.26641756]
[1744596146547,0.03,130.52,130.48,19.26641756]
[1744596148554,0.03,130.52,130.49,19.26641756]
[1744596149557,0.03,130.52,130.48,25.39751756]
[1744596149746,0.03,130.52,130.46,6.1321]
[1744596149978,0.03,130.52,130.48,19.26641756]
[1744596150961,0.03,130.52,130.49,25.39701756]
[1744596151146,0.03,130.52,130.48,25.39741756]
[1744596151351,19.29641756,130.52,130.47,26.0]
[1744596151740,19.29641756,130.52,130.47,45.26641756]
[1744596151962,0.03,130.52,130.48,19.26641756]
[1744596152176,0.03,130.52,130.49,19.26641756]
[1744596153033,0.03,130.52,130.48,25.39751756]
[1744596153743,0.03,130.52,130.49,19.26641756]
[1744596154264,0.03,130.52,130.48,19.26641756]
[1744596154441,19.26641756,130.51,130.47,26.0]
[1744596154642,19.26641756,130.5,130.46,7.38]
[1744596154949,19.26641756,130.5,130.45,25.39881756]
[1744596155275,25.39641756,130.51,130.46,19.26641756]
[1744596155642,19.29641756,130.52,130.47,19.26641756]
[1744596155849,0.03,130.52,130.47,19.26641756]
[1744596156054,25.42571756,130.52,130.47,19.26641756]
[1744596156261,25.42571756,130.52,130.46,19.26641756]
[1744596157566,25.42571756,130.52,130.46,25.39851756]
[1744596159066,25.42571756,130.52,130.46,19.26641756]
[1744596159862,19.26641756,130.48,130.43,82.6]
[1744596160038,19.26641756,130.48,130.42,32.78021756]
[1744596160039,19.26641756,130.45,130.4,25.73491756]
[1744596160238,19.26641756,130.44,130.38,91.6313]
[1744596160443,19.26641756,130.44,130.39,19.26641756]
[1744596160649,19.26641756,130.44,130.38,96.1157]
[1744596160852,19.26641756,130.44,130.38,115.38211756]
[1744596161056,19.26641756,130.44,130.39,19.26641756]
[1744596161546,6.1335,130.43,130.38,115.38211756]
[1744596162265,6.1335,130.43,130.38,109.24641756]
[1744596162565,25.39951756,130.44,130.38,115.38221756]
[1744596162738,6.1321,130.46,130.39,19.26641756]
[1744596162945,25.39851756,130.46,130.41,19.26641756]
[1744596163145,6.1558,130.49,130.42,19.26641756]
[1744596163353,19.26641756,130.47,130.41,19.26641756]
[1744596163559,6.1326,130.45,130.4,25.40131756]
[1744596164045,19.26641756,130.46,130.41,19.26641756]
[1744596164046,6.1322,130.46,130.41,19.26641756]
[1744596164347,6.1322,130.46,130.42,19.26641756]
[1744596164967,6.1322,130.46,130.41,19.26641756]
[1744596165462,6.1312,130.48,130.42,19.26641756]
[1744596165765,6.1312,130.48,130.4,6.1349]
[1744596165960,19.26641756,130.46,130.41,19.26641756]
[1744596167368,25.39891756,130.46,130.41,19.26641756]
[1744596167667,25.39891756,130.46,130.38,96.1157]
[1744596167965,19.26641756,130.44,130.38,115.38211756]
[1744596168560,19.26641756,130.44,130.38,96.1157]
[1744596168780,19.26641756,130.44,130.39,19.26641756]
[1744596168989,19.26641756,130.41,130.35,16.09169734]
[1744596169170,19.26641756,130.41,130.35,35.3581149]
[1744596169688,6.1349,130.4,130.35,29.2209149]
[1744596169921,25.40131756,130.4,130.35,19.26641756]
[1744596170373,19.26641756,130.38,130.32,108.06791756]
[1744596170583,21.4723,130.4,130.32,101.92941756]
[1744596170584,19.26641756,130.37,130.32,101.92941756]
[1744596170888,19.26641756,130.35,130.32,0.063]
[1744596171604,19.26641756,130.36,130.32,0.063]
[1744596171777,25.40361756,130.36,130.32,0.063]
[1744596171980,19.26641756,130.35,130.32,0.063]
[1744596172989,6.1377,130.34,130.32,0.063]
[1744596173194,25.40381756,130.35,130.32,0.063]
[1744596173390,26.0,130.37,130.33,19.26641756]
[1744596173602,45.26641756,130.37,130.32,19.32941756]
[1744596174304,45.26641756,130.37,130.32,0.063]
[1744596174597,19.26641756,130.36,130.32,0.063]
[1744596174779,45.26641756,130.37,130.32,0.063]
[1744596174980,51.40311756,130.37,130.32,19.32941756]
[1744596175598,51.40311756,130.37,130.32,0.063]
[1744596176829,51.40311756,130.37,130.32,25.46801756]
[1744596176830,19.26641756,130.37,130.32,25.46801756]
[1744596177096,25.40271756,130.37,130.32,25.46801756]
[1744596177799,25.40271756,130.37,130.32,19.32941756]
[1744596181064,15.3385,130.4,130.34,19.26641756]
[1744596181269,34.60491756,130.4,130.34,19.26641756]
[1744596181665,6.1354,130.39,130.35,19.26641756]
[1744596183481,6.133,130.44,130.38,19.26641756]
[1744596183787,6.133,130.44,130.4,19.26641756]
[1744596184164,6.133,130.44,130.39,19.26641756]
[1744596184477,19.26641756,130.44,130.39,19.26641756]
[1744596184674,19.26641756,130.44,130.35,101.39181043]
[1744596184875,19.26641756,130.44,130.39,19.26641756]
[1744596185185,7.38,130.45,130.41,19.26641756]
[1744596185760,26.64641756,130.45,130.4,19.26641756]
[1744596185964,32.77921756,130.45,130.4,19.26641756]
[1744596186188,19.26641756,130.44,130.39,19.26641756]
[1744596186412,19.26641756,130.44,130.38,45.26641756]
[1744596186567,19.26641756,130.44,130.38,19.26641756]
[1744596186897,32.77921756,130.45,130.4,19.26641756]
[1744596187075,13.5128,130.45,130.41,19.26641756]
[1744596187276,19.26641756,130.44,130.36,24.78604886]
[1744596187486,19.26641756,130.44,130.39,19.26641756]
[1744596188287,6.1335,130.43,130.39,19.26641756]
[1744596188489,19.26641756,130.42,130.36,82.6]
[1744596188687,19.26641756,130.38,130.34,82.6]
[1744596188862,19.26641756,130.35,130.32,0.063]
[1744596189068,19.26641756,130.34,130.32,0.063]
[1744596190086,19.26641756,130.33,130.32,0.063]
[1744596190284,44.48075113,130.33,130.32,0.063]
[1744596190872,25.40461756,130.33,130.32,0.063]
[1744596191592,44.48075113,130.33,130.32,0.063]
[1744596192667,89.0379,130.34,130.32,0.063]
[1744596192872,19.26641756,130.33,130.32,0.063]
[1744596193895,25.40461756,130.33,130.32,0.063]
[1744596194296,6.1382,130.33,130.32,0.063]
[1744596194995,44.48075113,130.33,130.32,0.063]
[1744596196291,25.40461756,130.33,130.32,0.063]
[1744596197091,44.48075113,130.33,130.32,0.063]
[1744596197602,25.40461756,130.33,130.32,0.063]
[1744596197775,91.0091,130.42,130.32,19.32941756]
[1744596197981,19.26641756,130.37,130.32,0.063]
[1744596198185,6.1359,130.38,130.34,19.26641756]
[1744596198373,6.1356,130.39,130.34,19.26641756]
[1744596199099,7.38,130.41,130.36,19.26641756]
[1744596199278,26.64641756,130.41,130.35,19.26641756]
[1744596199479,19.26641756,130.39,130.34,19.26641756]
[1744596199679,19.26641756,130.38,130.33,19.26641756]
[1744596200201,19.26641756,130.39,130.34,19.26641756]
[1744596200602,19.26641756,130.39,130.33,25.40461756]
[1744596200976,19.26641756,130.39,130.33,19.26641756]
[1744596201180,19.26641756,130.38,130.33,19.26641756]
[1744596201608,19.26641756,130.39,130.34,19.26641756]
[1744596201787,18.933972,130.4,130.32,82.663]
[1744596201788,19.26641756,130.37,130.32,82.663]
[1744596202097,6.1359,130.38,130.33,19.26641756]
[1744596202503,25.40201756,130.39,130.34,19.26641756]
[1744596202684,25.40201756,130.39,130.33,19.26641756]
[1744596203403,25.40201756,130.39,130.33,25.40431756]
[1744596203791,25.40151756,130.4,130.35,19.26641756]
[1744596203998,7.38,130.41,130.37,19.26641756]
[1744596204304,32.78091756,130.41,130.36,19.26641756]
[1744596206406,32.78091756,130.41,130.35,19.26641756]
[1744596206586,19.26641756,130.4,130.34,25.40411756]
[1744596206909,19.26641756,130.38,130.32,0.063]
[1744596207397,6.1361,130.38,130.32,25.46801756]
[1744596207596,6.1361,130.38,130.33,19.26641756]
[1744596208101,25.40251756,130.38,130.33,19.26641756]
[1744596208403,25.40251756,130.38,130.32,25.46801756]
[1744596208601,7.38,130.41,130.35,19.26641756]
[1744596208807,7.38,130.41,130.36,19.26641756]
[1744596209305,26.64641756,130.41,130.36,19.26641756]
[1744596209494,19.26641756,130.4,130.35,19.26641756]
[1744596209805,25.40141756,130.4,130.35,25.40361756]
[1744596210009,6.135,130.4,130.35,25.40361756]
[1744596210212,6.135,130.4,130.33,6.1382]
[1744596210507,19.26641756,130.39,130.34,19.26641756]
[1744596210810,25.40141756,130.4,130.34,19.26641756]
[1744596211714,19.26641756,130.4,130.35,25.40371756]
[1744596211931,13.5146,130.41,130.36,19.26641756]
[1744596212122,32.78101756,130.41,130.35,25.40371756]
[1744596212708,19.26641756,130.4,130.35,6.1373]
[1744596212888,25.40151756,130.4,130.35,25.40371756]
[1744596214005,6.1351,130.4,130.35,25.40371756]
[1744596215704,6.1351,130.4,130.33,6.1382]
[1744596215905,19.26641756,130.39,130.33,6.1382]
[1744596216112,25.40151756,130.4,130.34,19.26641756]
[1744596216346,26.64641756,130.41,130.35,19.26641756]
[1744596216502,32.78091756,130.41,130.35,19.26641756]
[1744596217015,32.78091756,130.41,130.33,21.4838]
[1744596217190,25.59217942,130.41,130.35,12.07767942]
[1744596217391,12.07767942,130.4,130.34,12.07767942]
[1744596217917,18.21267942,130.4,130.35,6.1373]
[1744596218527,12.07767942,130.4,130.35,6.1373]
[1744596218811,105.97142159,130.44,130.39,12.07767942]
[1744596218812,6.1332,130.44,130.39,12.07767942]
[1744596219012,12.07767942,130.4,130.35,88.7373]
[1744596219598,12.07767942,130.4,130.35,100.81497942]
[1744596220005,12.07767942,130.41,130.36,12.07767942]
[1744596220812,12.07767942,130.41,130.35,100.81497942]
[1744596221208,21.4657,130.44,130.35,100.81497942]
[1744596221412,12.07767942,130.41,130.36,12.07767942]
[1744596221634,12.07767942,130.41,130.35,100.81497942]
[1744596221807,12.07767942,130.4,130.35,100.81497942]
[1744596222118,12.07767942,130.41,130.36,12.07767942]
[1744596222291,21.4657,130.44,130.36,18.21417942]
[1744596222491,12.07767942,130.41,130.36,18.21417942]
[1744596223013,12.07767942,130.41,130.36,6.1365]
[1744596223422,12.07767942,130.41,130.35,100.81477942]
[1744596223621,12.07767942,130.39,130.35,82.6]
[1744596224122,12.07767942,130.39,130.35,88.7372]
[1744596224493,12.07767942,130.4,130.35,88.7372]
[1744596225119,12.07767942,130.42,130.37,12.07767942]
[1744596225616,18.21177942,130.42,130.37,18.21367942]
[1744596225798,18.21177942,130.42,130.37,6.136]
[1744596225994,12.07767942,130.41,130.37,6.136]
[1744596226191,18.79181043,130.37,130.32,0.063]
[1744596226400,12.07767942,130.33,130.32,0.063]
[1744596228122,37.29201299,130.33,130.32,0.063]
[1744596229120,19.35052901,130.33,130.32,0.063]
[1744596230324,25.48872901,130.33,130.32,0.063]
[1744596231812,22.7232,130.36,130.32,0.063]
[1744596231813,7.38,130.36,130.32,0.063]
[1744596232212,19.35052901,130.34,130.32,0.063]
[1744596236013,19.35052901,130.33,130.32,0.063]
[1744596236634,19.35052901,130.34,130.32,0.063]
[1744596237027,19.35052901,130.33,130.32,0.063]
[1744596238230,44.56486258,130.33,130.32,0.063]
[1744596239233,19.35052901,130.33,130.32,0.063]
[1744596239942,19.35052901,130.35,130.32,0.063]
[1744596240129,19.35052901,130.38,130.32,19.41352901]
[1744596240321,26.73052901,130.39,130.34,19.35052901]
[1744596240524,26.73052901,130.39,130.33,19.35052901]
[1744596241027,6.3245,130.41,130.33,19.35052901]
[1744596241028,19.35052901,130.41,130.34,0.14216157]
[1744596241226,6.1628,130.45,130.39,19.35052901]
[1744596241432,19.35052901,130.44,130.39,19.35052901]
[1744596241822,19.35052901,130.44,130.39,25.48562901]
[1744596242235,19.35052901,130.43,130.38,6.1357]
[1744596242843,19.35052901,130.43,130.38,25.48622901]
[1744596243147,6.1626,130.45,130.39,19.35052901]
[1744596243148,19.35052901,130.44,130.39,19.35052901]
[1744596244347,25.51312901,130.45,130.39,19.35052901]
[1744596244651,25.51312901,130.45,130.4,19.35052901]
[1744596244851,0.03,130.45,130.42,19.35052901]
[1744596245155,0.03,130.45,130.41,0.28432314]
[1744596245352,0.03,130.45,130.42,19.35052901]
[1744596246215,0.03,130.45,130.4,19.35052901]
[1744596246447,0.03,130.45,130.41,19.35052901]
[1744596247857,0.03,130.45,130.42,19.35052901]
[1744596248032,0.03,130.45,130.44,19.35052901]
[1744596250040,0.03,130.45,130.44,120.88450101]
[1744596250553,0.03,130.45,130.44,101.95052901]
[1744596251856,0.03,130.45,130.44,120.88450101]
[1744596252149,0.03,130.45,130.44,127.40110101]
[1744596252328,0.03,130.45,130.44,108.46712901]
[1744596253125,0.03,130.45,130.44,101.17621482]
[1744596253752,0.03,130.45,130.44,94.65961482]
[1744596254879,0.03,130.45,130.44,101.533972]
[1744596255049,0.03,130.45,130.42,82.6]
[1744596255244,12.08961482,130.45,130.39,120.68926368]
[1744596255468,12.05961482,130.42,130.39,82.6]
[1744596256080,18.19371482,130.42,130.39,82.6]
[1744596256257,6.1341,130.42,130.39,82.6]
[1744596257544,12.05961482,130.43,130.39,82.6]
[1744596258563,33.55371482,130.45,130.39,94.65961482]
[1744596258768,12.05961482,130.44,130.39,82.6]
[1744596259067,12.05961482,130.43,130.39,82.6]
[1744596260337,6.134,130.42,130.39,82.6]
[1744596260537,18.19331482,130.43,130.39,82.6]
[1744596260740,6.1337,130.43,130.39,82.6]
[1744596261066,18.19331482,130.43,130.39,82.6]
[1744596265056,6.1337,130.43,130.39,94.65961482]
[1744596266890,6.1332,130.44,130.41,12.05961482]
[1744596267062,0.03,130.45,130.43,12.05961482]
[1744596267261,0.03,130.45,130.43,94.65961482]
[1744596267515,6.1627,130.45,130.43,94.65961482]
[1744596268061,0.03,130.45,130.43,94.65961482]
[1744596268266,0.03,130.45,130.44,12.05961482]
[1744596272081,0.03,130.45,130.43,12.05961482]
[1744596272485,0.03,130.45,130.42,1.6542]
[1744596272486,0.03,130.45,130.44,12.05961482]
[1744596272783,0.03,130.45,130.42,20.588172]
[1744596272976,0.03,130.45,130.42,1.6542]
[1744596273288,12.05961482,130.44,130.39,12.05961482]
[1744596273483,12.05961482,130.42,130.37,25.95621482]
[1744596274274,6.1344,130.41,130.37,25.95621482]
[1744596277011,6.1344,130.41,130.37,7.38]
[1744596277012,33.53021482,130.41,130.37,7.38]
[1744596277290,6.1363,130.37,130.32,10.02036424]
[1744596277588,12.05961482,130.36,130.32,10.02036424]
[1744596277769,6.1363,130.37,130.32,0.063]
[1744596277770,12.05961482,130.33,130.32,0.063]
[1744596279184,19.34734735,130.33,130.32,0.063]
[1744596279390,25.48554735,130.33,130.32,0.063]
[1744596279586,19.34734735,130.32,130.31,0.063]
[1744596280087,19.34734735,130.32,130.31,0.0001]
[1744596281086,44.56218092,130.32,130.31,0.0001]
[1744596281492,63.90952827,130.32,130.31,0.0001]
[1744596282187,65.44752827,130.32,130.31,0.0001]
[1744596287487,65.44752827,130.32,130.27,0.063]
[1744596287692,19.07613357,130.28,130.27,0.0001]
[1744596287890,45.80348092,130.28,130.26,0.0001]
[1744596288194,19.34734735,130.27,130.26,0.0001]
[1744596289572,6.1401,130.29,130.26,0.0001]
[1744596290095,19.34734735,130.28,130.26,0.0001]
[1744596291015,19.34734735,130.29,130.26,0.0001]
[1744596291293,19.34734735,130.3,130.26,0.0001]
[1744596292173,6.1401,130.29,130.26,0.0001]
[1744596294980,25.48744735,130.29,130.26,0.0001]
[1744596295181,19.34734735,130.27,130.26,0.0001]
[1744596296604,25.48834735,130.27,130.26,0.0001]
[1744596298599,19.34734735,130.27,130.26,0.0001]
[1744596298791,6.1407,130.28,130.26,0.0001]
[1744596298985,25.48804735,130.28,130.26,0.0001]
[1744596299186,19.34734735,130.27,130.26,0.0001]
[1744596300307,25.48834735,130.27,130.26,0.0001]
[1744596301609,19.34734735,130.28,130.26,0.0001]
[1744596302109,19.34734735,130.27,130.26,0.0001]
[1744596302613,25.48834735,130.27,130.26,0.0001]
[1744596303107,44.56448092,130.27,130.26,0.0001]
[1744596303407,43.60129093,130.27,130.25,0.0001]
[1744596303598,12.10654447,130.26,130.25,0.0001]
[1744596304310,18.24754447,130.27,130.25,0.0001]
[1744596305111,12.10654447,130.26,130.25,0.0001]
[1744596305906,31.18267804,130.26,130.25,0.0001]
[1744596307000,37.32417804,130.26,130.25,0.0001]
[1744596309094,52.67807804,130.26,130.23,0.0001]
[1744596309417,24.21308894,130.24,130.23,0.0001]
[1744596309595,52.24462251,130.24,130.2,0.063]
[1744596309909,57.18267804,130.21,130.2,0.063]
[1744596310810,27.58984447,130.24,130.2,0.063]
[1744596311006,12.10654447,130.21,130.2,0.063]
[1744596311401,57.18267804,130.21,130.2,0.063]
[1744596311892,26.74693357,130.2,130.18,0.0001]
[1744596312093,26.74693357,130.2,130.12,0.0001]
[1744596312094,26.0,130.13,130.12,0.0001]
[1744596312292,19.07613357,130.12,130.01,6.1533]
[1744596312499,12.10654447,130.06,130.01,12.10654447]
[1744596312727,12.10654447,130.05,130.0,18.64994447]
[1744596313096,12.10654447,130.04,130.0,6.5434]
[1744596313425,19.42928298,130.07,130.02,19.42928298]
[1744596314213,29.13151716,130.12,130.04,19.42928298]
[1744596314214,13.5292,130.1,130.04,19.42928298]
[1744596314398,19.42928298,130.09,130.04,19.42928298]
[1744596314602,19.42928298,130.09,130.02,0.28432314]
[1744596314805,19.42928298,130.09,130.04,19.42928298]
[1744596315000,19.42928298,130.08,130.06,0.063]
[1744596315197,19.42928298,130.07,130.06,0.063]
[1744596315395,38.50541655,130.07,130.06,0.063]
[1744596315899,19.42928298,130.07,130.06,0.063]
[1744596316407,38.50541655,130.07,130.06,0.063]
[1744596316613,19.42928298,130.07,130.06,0.063]
[1744596316883,19.42928298,130.08,130.06,0.063]
[1744596317330,28.9019,130.1,130.06,0.063]
[1744596317331,19.42928298,130.07,130.06,0.063]
[1744596317717,28.9019,130.1,130.06,0.063]
[1744596317718,19.42928298,130.08,130.06,0.063]
[1744596318627,6.1488,130.11,130.06,0.063]
[1744596318795,19.42928298,130.1,130.06,0.063]
[1744596319329,25.57738298,130.13,130.08,19.42928298]
[1744596319628,6.1467,130.15,130.09,19.42928298]
[1744596319808,6.1467,130.15,130.1,19.42928298]
[1744596320131,19.42928298,130.16,130.11,19.42928298]
[1744596320896,19.42928298,130.17,130.12,19.42928298]
[1744596321099,25.57408298,130.19,130.14,19.42928298]
[1744596321427,19.42928298,130.17,130.12,19.42928298]
[1744596322330,6.1448,130.19,130.11,6.1486]
[1744596322619,19.42928298,130.17,130.12,45.42928298]
[1744596322801,19.42928298,130.16,130.12,26.0]
[1744596323301,19.42928298,130.17,130.12,51.57718298]
[1744596323708,19.42928298,130.19,130.14,19.42928298]
[1744596324430,25.57358298,130.2,130.15,19.42928298]
[1744596324724,19.42928298,130.23,130.18,19.42928298]
[1744596325027,19.42928298,130.19,130.15,6.2581]
[1744596325523,19.42928298,130.18,130.14,9.0308]
[1744596326510,25.57468298,130.18,130.14,9.0308]
[1744596327524,19.42928298,130.17,130.14,9.0308]
[1744596327903,19.42928298,130.18,130.14,9.0308]
[1744596328109,19.42928298,130.17,130.14,9.0308]
[1744596328317,19.42928298,130.18,130.14,15.178]
[1744596328516,19.42928298,130.17,130.14,7.38]
[1744596328802,19.42928298,130.16,130.14,7.38]
[1744596329104,19.42928298,130.17,130.14,7.38]
[1744596330422,19.42928298,130.15,130.11,6.2581]
[1744596331408,19.42928298,130.18,130.13,19.42928298]
[1744596331830,19.42928298,130.18,130.13,25.57648298]
[1744596332145,6.1429,130.23,130.16,19.42928298]
[1744596332314,25.57218298,130.23,130.17,19.42928298]
[1744596332518,25.57218298,130.23,130.18,19.42928298]
[1744596333137,25.57218298,130.23,130.18,25.57448298]
[1744596333436,19.42928298,130.24,130.19,19.42928298]
[1744596333838,6.1415,130.26,130.19,19.42928298]
[1744596334040,19.42928298,130.24,130.19,19.42928298]
[1744596334863,19.42928298,130.25,130.2,19.42928298]
[1744596335332,19.42928298,130.25,130.2,25.57348298]
[1744596336632,25.57078298,130.26,130.2,25.57348298]
[1744596337018,19.42928298,130.25,130.2,25.57348298]
[1744596337505,19.42928298,130.23,130.18,6.0533]
[1744596337710,19.42928298,130.23,130.18,25.48258298]
[1744596338543,19.42928298,130.22,130.18,6.0533]
[1744596338905,19.42928298,130.24,130.18,12.1985]
[1744596339125,19.42928298,130.24,130.18,31.62778298]
[1744596339419,19.42928298,130.22,130.18,12.1985]
[1744596340019,19.42928298,130.23,130.18,12.1985]
[1744596340207,19.42928298,130.23,130.18,31.62778298]
[1744596340504,19.42928298,130.23,130.18,12.1985]
[1744596340707,19.42928298,130.22,130.18,12.1985]
[1744596341152,19.42928298,130.23,130.18,12.1985]
[1744596341536,19.42928298,130.19,130.15,12.7516]
[1744596341739,19.42928298,130.18,130.15,12.7516]
[1744596342056,19.42928298,130.18,130.15,6.6051]
[1744596342366,6.1446,130.2,130.14,1.5994]
[1744596342367,19.42928298,130.16,130.14,1.5994]
[1744596342663,19.42928298,130.15,130.12,6.1479]
[1744596342960,19.42928298,130.14,130.1,1.5994]
[1744596343335,19.42928298,130.16,130.11,19.42928298]
[1744596343742,19.42928298,130.16,130.1,42.55028298]
[1744596343937,19.42928298,130.15,130.1,42.55028298]
[1744596345056,19.42928298,130.18,130.12,19.42928298]
[1744596345556,19.42928298,130.17,130.11,38.36325498]
[1744596345857,19.42928298,130.17,130.12,25.57738298]
[1744596347355,19.42928298,130.18,130.13,38.36325498]
[1744596347735,19.42928298,130.23,130.17,39.67833184]
[1744596347946,6.1415,130.26,130.2,19.42928298]
[1744596348165,11.37822795,130.3,130.21,19.42928298]
[1744596348166,22.7301,130.3,130.21,19.42928298]
[1744596348457,19.42928298,130.26,130.21,19.42928298]
[1744596349364,0.03,130.23,130.22,6.1434]
[1744596350447,0.03,130.23,130.22,32.17778298]
[1744596350754,0.03,130.23,130.22,12.7485]
[1744596351951,0.03,130.23,130.22,6.6051]
[1744596352130,0.03,130.23,130.21,6.1437]
[1744596352735,0.03,130.23,130.21,25.57298298]
[1744596353353,0.03,130.23,130.22,19.42928298]
[1744596354091,0.03,130.23,130.22,25.57268298]
[1744596354445,0.03,130.23,130.22,44.64881655]
[1744596355659,19.42928298,130.3,130.25,19.42928298]
[1744596355963,19.42928298,130.29,130.24,34.55068298]
[1744596356146,19.42928298,130.3,130.25,19.42928298]
[1744596357360,19.42928298,130.3,130.26,6.1415]
[1744596357938,0.03,130.32,130.28,19.42928298]
[1744596358859,0.03,130.32,130.29,19.42928298]
[1744596359039,0.03,130.32,130.28,19.42928298]
[1744596359645,0.03,130.32,130.29,25.56938298]
[1744596359847,0.03,130.32,130.29,6.1401]
[1744596360373,19.45928298,130.32,130.27,25.56988298]
[1744596360679,0.03,130.32,130.28,19.42928298]
[1744596361342,19.42928298,130.3,130.26,82.6]
[1744596361544,19.42928298,130.31,130.26,108.17068298]
[1744596361958,0.03,130.32,130.28,19.42928298]
[1744596362340,25.59798298,130.32,130.26,108.17068298]
[1744596363256,19.45928298,130.32,130.27,19.42928298]
[1744596363646,19.42928298,130.31,130.26,108.17068298]
[1744596363964,0.03,130.32,130.26,108.17068298]
[1744596364151,0.03,130.32,130.29,19.42928298]
[1744596364557,0.03,130.32,130.28,19.42928298]
[1744596364939,0.03,130.32,130.27,38.36325498]
[1744596365142,0.03,130.32,130.28,19.42928298]
[1744596365369,0.03,130.32,130.29,19.42928298]
[1744596365865,0.03,130.32,130.3,6.1396]
[1744596366563,0.03,130.32,130.31,38.50541655]
[1744596366863,0.03,130.32,130.31,129.08771655]
[1744596367242,0.03,130.32,130.31,82.6]
[1744596367643,38.88856596,130.32,130.24,7.9823]
[1744596367861,19.42928298,130.25,130.2,6.1442]
[1744596368063,19.42928298,130.22,130.2,6.1442]
[1744596368363,7.6249,130.29,130.21,19.42928298]
[1744596368564,19.42928298,130.26,130.21,19.42928298]
[1744596368771,19.42928298,130.24,130.2,6.1442]
[1744596368950,19.42928298,130.23,130.2,6.1442]
[1744596369352,19.42928298,130.23,130.18,6.4487]
[1744596369953,19.42928298,130.24,130.19,19.42928298]
[1744596370153,6.142,130.25,130.19,19.42928298]
[1744596370369,19.42928298,130.24,130.19,19.42928298]
[1744596370669,19.42928298,130.23,130.18,32.02318298]
[1744596371457,19.42928298,130.22,130.18,6.4487]
[1744596371665,19.42928298,130.21,130.17,6.1456]
[1744596371859,19.42928298,130.24,130.18,19.42928298]
[1744596372470,19.42928298,130.25,130.2,19.42928298]
[1744596372681,19.42928298,130.26,130.2,19.42928298]
[1744596373051,19.42928298,130.26,130.2,102.02928298]
[1744596373465,19.42928298,130.26,130.21,6.1439]
[1744596373862,25.57088298,130.26,130.21,25.57318298]
[1744596374272,19.42928298,130.26,130.21,108.17318298]
[1744596374873,25.57098298,130.26,130.21,102.02928298]
[1744596375084,19.42928298,130.25,130.21,82.6]
[1744596375460,19.42928298,130.26,130.21,82.6]
[1744596375672,19.42928298,130.28,130.23,19.42928298]
[1744596375883,0.03,130.29,130.25,19.42928298]
[1744596376055,19.45928298,130.29,130.24,19.42928298]
[1744596376255,19.45928298,130.29,130.23,38.36325498]
[1744596376256,25.59938298,130.29,130.23,38.36325498]
[1744596376462,19.42928298,130.28,130.23,38.36325498]
[1744596376773,19.45928298,130.29,130.24,19.42928298]
[1744596377185,0.03,130.29,130.24,19.42928298]
[1744596377364,19.45928298,130.29,130.24,19.42928298]
[1744596377563,0.03,130.29,130.24,19.42928298]
[1744596377883,0.03,130.29,130.26,19.42928298]
[1744596378267,0.03,130.29,130.25,6.142]
[1744596378268,0.03,130.29,130.24,102.02928298]
[1744596378481,19.42928298,130.28,130.24,82.6]
[1744596378690,0.03,130.29,130.24,108.17168298]
[1744596378884,0.03,130.29,130.25,19.42928298]
[1744596379282,0.03,130.29,130.28,19.42928298]
[1744596379588,0.03,130.29,130.24,108.17168298]
[1744596379787,0.03,130.29,130.25,19.42928298]
[1744596380698,0.03,130.29,130.26,19.42928298]
[1744596380930,0.03,130.29,130.27,19.42928298]
[1744596381272,0.03,130.29,130.26,19.42928298]
[1744596381608,0.03,130.29,130.25,102.02928298]
[1744596381807,0.03,130.29,130.22,82.6]
[1744596381808,19.42928298,130.26,130.22,82.6]